Cogmind - Beta 15 @@@ ROGUE MODE // 2025.05.18 @ 14:40:17 Player: Minty Result: Self-destructed Performance ------------- Evolutions (5) 2500 Regions Visited (15) 3000 Robots Destroyed (168) 840 Value Destroyed (5206) 5206 Prototype IDs (64) 1280 Alien Tech Used (0) 0 Bonus (653) 653 TOTAL SCORE: 13479 Bonus ------- High Alert Combat Kills 19 Follower Combat Kills 70 Aligned with FarCom 300 Met Data Miner 300 Friendly Fire -36 Cogmind --------- Core Integrity 740/1000 Matter 286/300 Energy 100/100 System Corruption 12% Temperature Cool (0) Movement Core (1350) Ox26 Location -5/Waste Parts ------- > --- POWER (1) -------- (None) > --- PROPULSION (5) --- (None) > --- UTILITY (9) ------ Enhanced Optical Array Army-in-a-Box (14/30) > --- WEAPON (2) ------- (None) > --- INVENTORY (5) ---- Fission Core Light Fission Core Medium Storage Unit 01-MTF's Autohacker Heavy Gatling Laser Peak State ------------ > --- POWER ------------ Heavy Antimatter Reactor > --- PROPULSION ------- Enhanced Armored Medium Treads Enhanced Armored Medium Treads Enhanced Armored Medium Treads Enhanced Armored Medium Treads > --- UTILITY ---------- Experimental Heat Sink Medium Storage Unit Trap Scanner Centrium Light Armor Plating Advanced Thermal Shield 01-MTF's Autohacker > --- WEAPON ----------- Advanced Plasma Rifle Advanced Plasma Rifle > --- INVENTORY -------- Cooled Fission Core Heavy Antimatter Reactor Army-in-a-Box 01-MTF's Shockpuncher Tesla Bomb Launcher [Rating: 98] Favorites ----------- Power Improved Ion Engine Engine Improved Ion Engine Power Core Fission Core Reactor Heavy Antimatter Reactor Propulsion Armored Treads Treads Armored Treads Leg Armored Leg Wheel Wheel Hover Unit Cooled Airjet Utility Heat Sink Device Heat Sink Storage Medium Storage Unit Processor Enhanced Optical Array Hackware Improved Hacking Suite Protection Improved Utility Shielding Weapon Improved EM Shotgun Energy Gun Improved EM Shotgun Energy Cannon Long-range Proton Cannon Ballistic Gun Precision Assault Rifle Ballistic Cannon Antimatter Cannon Launcher Tesla Bomb Launcher Impact Weapon Hammer Special Melee Weapon Datajack Build | -11 -10 -9 -9 -9 -8 -8 -7 -7 -6 -6 -6 -6 -5 -5 -5 ------- Run | Yrd Mat Mat Min Exi Min Mat Fac Sto Fac Low Low Dat Pro Fac Was Slots Evolved 10 | . . 2 . . . 2 2 . 2 . . . . 2 . Power . | . . . . . . . . . . . . . . . . Propulsion 3 | . . . . . . 2 . . 1 . . . . . . Utility 7 | . . 2 . . . . 2 . 1 . . . . 2 . Weapon . | . . . . . . . . . . . . . . . . Parts Attached 142 | . 14 12 1 2 2 17 18 27 18 8 11 . 3 8 1 Power 13 | . 2 1 . . . . 3 3 1 . 2 . . 1 . Engine 4 | . 2 1 . . . . . . . . 1 . . . . Core 5 | . . . . . . . 2 1 . . 1 . . 1 . Reactor 4 | . . . . . . . 1 2 1 . . . . . . Propulsion 37 | . 5 4 . . 1 6 5 5 5 . 4 . 1 1 . Treads 13 | . 2 2 . . . 4 5 . . . . . . . . Leg 7 | . . 2 . . . . . . . . 3 . 1 1 . Wheel 5 | . 1 . . . 1 2 . 1 . . . . . . . Hover 12 | . 2 . . . . . . 4 5 . 1 . . . . Flight . | . . . . . . . . . . . . . . . . Utility 58 | . 3 3 1 2 1 4 4 16 8 8 3 . 2 2 1 Device 23 | . 1 1 1 . . 1 4 8 1 3 1 . . 1 1 Storage 9 | . 2 . . 2 . 1 . 1 2 . . . 1 . . Processor 10 | . . 2 . . . . . 1 1 3 2 . 1 . . Hackware 3 | . . . . . . 1 . . 2 . . . . . . Protection 13 | . . . . . 1 1 . 6 2 2 . . . 1 . Artifact . | . . . . . . . . . . . . . . . . Weapon 34 | . 4 4 . . . 7 6 3 4 . 2 . . 4 . Energy Gun 14 | . 2 3 . . . 2 3 1 1 . . . . 2 . Energy Cannon 4 | . 1 . . . . . . . . . 2 . . 1 . Ballistic Gun 6 | . . . . . . 3 2 1 . . . . . . . Ballistic Cannon 4 | . . . . . . . . 1 2 . . . . 1 . Launcher 4 | . . 1 . . . 2 1 . . . . . . . . Special Weapon . | . . . . . . . . . . . . . . . . Impact Weapon 1 | . 1 . . . . . . . . . . . . . . Slashing Weapon . | . . . . . . . . . . . . . . . . Piercing Weapon . | . . . . . . . . . . . . . . . . Special Melee Weapon 1 | . . . . . . . . . 1 . . . . . . Unidentified Prototypes 26 | . . . 1 . . 3 6 10 4 1 . . . 1 . Corrupted Parts 5 | . . . . . . 2 3 . . . . . . . . System Corruption 17 | . . . . . . 5 12 . . . . . . . . Parts Lost 41 | . 3 1 . . . 4 6 3 2 1 9 . 2 6 4 Power 3 | . . . . . . . 1 . . . 2 . . . . Propulsion 20 | . 1 . . . . 3 3 1 1 . 6 . 2 2 1 Utility 10 | . . . . . . 1 2 1 1 1 . . . 1 3 Weapon 8 | . 2 1 . . . . . 1 . . 1 . . 3 . Highest Loss Streak 7 | . 3 1 . . . 3 4 1 1 1 7 . 2 4 4 To Critical Strikes 1 | . . . . . . . . . . . . . 1 . . Average Backups 7 | . 5 7 8 8 12 17 5 4 4 5 3 2 2 4 6 Power . | . 1 1 . . . . . . . 1 . . . . 2 Propulsion 1 | . 2 1 1 1 3 2 . . 1 2 . . . . . Utility 2 | . 1 2 1 2 3 5 1 1 1 1 1 1 1 2 1 Weapon 2 | . . 2 4 4 4 7 2 1 . . . . . 1 1 Tool/Special . | . . . . . . . . . . . . . . . . Unused Backups 25 | . 5 3 1 2 1 2 10 . . . . . . . 1 Power 3 | . 1 . 1 . . . . . . . . . . . 1 Propulsion 6 | . 3 . . . 1 2 . . . . . . . . . Utility 7 | . . 3 . 1 . . 3 . . . . . . . . Weapon 6 | . 1 . . . . . 5 . . . . . . . . Tool/Special 3 | . . . . 1 . . 2 . . . . . . . . Average Slot Usage (%) 87 | . 84 96 100 82 85 86 79 95 96 94 78 86 88 82 41 Engine 5 | . 14 11 11 11 11 8 2 . . . 1 . . . . Core 1 | . . . . . . . 2 . . . 1 6 6 5 2 Reactor 1 | . . . . . . . 1 6 6 6 1 . . . . Treads 12 | . 18 13 22 13 1 17 29 15 . . . . . . . Leg 3 | . 5 8 . . . . . . . . 5 20 18 10 5 Wheel 4 | . . . . 8 20 17 . . . . . . . . . Hover 5 | . 3 . . . . . . 11 32 33 14 6 6 4 . Device 9 | . 7 16 11 11 11 6 7 17 9 7 4 . . 3 2 Storage 8 | . 14 11 11 11 11 9 7 7 6 6 6 6 6 5 2 Processor 8 | . . 14 22 5 . . . 1 8 9 20 20 23 23 14 Hackware 1 | . . . . . . . 5 . 4 6 6 6 6 5 2 Protection 6 | . . . . . 8 7 5 16 13 9 6 6 6 9 5 Energy Gun 11 | . 7 10 22 22 22 11 2 14 10 . . . . . 3 Energy Cannon 2 | . 9 5 . . . . . . . . 1 13 13 8 . Ballistic Gun 1 | . . . . . . 6 11 . . . . . . . . Peak Build Rating 98 | . 7 21 29 24 24 43 73 98 93 88 78 61 69 77 66 Average Rating 44 | . 5 14 21 20 23 31 47 84 85 81 56 61 63 69 60 On Entrance 44 | 6 6 7 21 22 22 24 43 72 77 88 78 61 61 63 66 Naked Turns . | . . . . . . . . . . . . . . . . Heaviest Build 233 | 13 16 20 19 214 217 233 44 57 59 56 46 40 50 54 45 Greatest Support 140 | 20 40 40 40 40 20 80 140 105 71 51 51 49 64 34 31 Greatest Overweight (x) 21 | . 2 1 . 21 21 21 . 5 1 1 2 . 1 2 1 Average Overweight (x) 1 | . . . . 12 10 4 . . . . . . . 1 . Largest Inventory Capacity 35 | . 8 8 8 35 35 35 35 10 15 10 10 10 15 15 15 Average Capacity 17 | . 8 8 8 28 35 35 10 10 10 10 10 10 10 15 9 Most Carried 33 | . 8 8 8 16 20 33 31 10 12 10 10 10 10 11 13 Average Carried 11 | . 5 7 7 11 17 22 9 9 9 10 9 10 8 10 8 Final Capacity 35 | 8 8 8 8 35 35 35 10 10 10 10 10 10 15 15 5 Final Carried 32 | 6 8 8 8 14 20 32 10 10 10 10 10 10 10 11 5 Class Distribution -------------------- 52% | Mutant 30% | Hauler-Mutant 11% | Derelict-Mutant Dominant Class ---------------- Mutant | -10/Materials Mutant | -9/Materials Mutant | -9/Mines Hauler-Mutant | -9/Exiles Hauler-Mutant | -8/Mines Hauler-Mutant | -8/Materials Mutant | -7/Factory Mutant | -7/Storage Mutant | -6/Factory Mutant | -6/Lower Caves Mutant | -6/Lower Caves Derelict-Mutant | -6/Data Miner Derelict-Mutant | -5/Proximity Caves Derelict-Skirmisher | -5/Factory Mutant | -5/Waste Resources | -11 -10 -9 -9 -9 -8 -8 -7 -7 -6 -6 -6 -6 -5 -5 -5 ----------- Run | Yrd Mat Mat Min Exi Min Mat Fac Sto Fac Low Low Dat Pro Fac Was Matter Collected 3639 | 200 115 144 20 . 70 480 341 900 259 469 455 . 30 132 24 Remotely . | . . . . . . . . . . . . . . . . Salvage Created 7017 | . 301 544 45 . 559 1540 841 1696 493 200 209 . 102 487 . Parts 356 | . 23 36 7 . 26 86 41 68 24 5 11 . 7 22 . Haulers Intercepted 11 | . . . . . . 2 1 5 2 1 . . . . . Recyclers Shooed 6 | . . . . . 2 1 2 1 . . . . . . . Parts Field Recycled . | . . . . . . . . . . . . . . . . Retrieved Matter . | . . . . . . . . . . . . . . . . Parts Self-Destructed 18 | . . . . . . . . . . 5 11 . 2 . . Prevented 10 | . . . . . . . . . . . . . 10 . . Kills | -11 -10 -9 -9 -9 -8 -8 -7 -7 -6 -6 -6 -6 -5 -5 -5 ------- Run | Yrd Mat Mat Min Exi Min Mat Fac Sto Fac Low Low Dat Pro Fac Was Combat Hostiles Destroyed 113 | . 10 10 3 . 1 23 14 20 5 7 9 . 3 8 . Melee 1 | . . 1 . . . . . . . . . . . . . Guns 47 | . . 2 2 . 1 20 5 13 4 . . . . . . Cannons 32 | . 7 1 . . . . . . . 7 9 . 2 6 . AOE 25 | . 3 5 1 . . 3 8 3 . . . . . 2 . Classes Destroyed 17 | . 3 6 . . 1 2 3 . . 1 1 . . . . Worker 16 | . . 1 . . 5 4 1 3 1 . . . . 1 . Builder 5 | . . 1 . . . 2 . . . . . . . 2 . Tunneler 3 | . . . . . . 2 . . 1 . . . . . . Hauler 11 | . . . . . . 2 1 5 2 1 . . . . . Recycler 9 | . . 1 . . 4 . 1 3 . . . . . . . Minesweeper 1 | . . . . . . . . . . . 1 . . . . Mechanic 3 | . . 1 . . . 1 . 1 . . . . . . . Operator 4 | . 2 1 . . . . . . 1 . . . . . . Watcher 3 | . . 1 . . . 1 . 1 . . . . . . . Swarmer 30 | . 3 4 3 . . 3 6 2 2 . 5 . 2 . . Grunt 52 | . 7 2 . . . 17 . 9 2 6 3 . . 6 . Duelist 2 | . . . . . . . . . . 1 1 . . . . Protector 1 | . . . . . . . 1 . . . . . . . . Sentry 13 | . . 4 . . . 2 . 6 1 . . . . . . Specialist 2 | . . . . . . . 2 . . . . . . . . Hunter 5 | . . . . . 1 1 3 . . . . . . . . Programmer 7 | . . . . . . . 2 2 . . . . 1 2 . Packrat 1 | . . . . . . . . . . . 1 . . . . Best Kill Streak 6 | . 4 4 3 . 3 6 4 6 2 4 4 . 2 4 . Combat Bots Only 5 | . 4 4 3 . 1 5 4 4 2 4 4 . 2 4 . Max Kills in Single Turn 4 | . 3 4 1 . 2 2 4 3 1 1 1 . 1 2 . Gunslinging . | . . . . . . . . . . . . . . . . Exploded 4 | . 3 4 1 . . 2 3 2 . . . . . 1 . Melee 1 | . . 1 . . . . . . . . . . . . . Uniques/NPCs Destroyed 1 | . . . . . . . . 1 . . . . . . . 01-MTF (-7/Storage) Combat | -11 -10 -9 -9 -9 -8 -8 -7 -7 -6 -6 -6 -6 -5 -5 -5 -------- Run | Yrd Mat Mat Min Exi Min Mat Fac Sto Fac Low Low Dat Pro Fac Was Hostile Shots Fired 1127 | . 44 41 9 . 6 108 259 319 118 38 88 . 40 49 8 Missed 412 | . 11 14 2 . 1 33 96 118 54 15 37 . 17 14 . Hits 715 | . 33 27 7 . 5 75 163 201 64 23 51 . 23 35 8 Melee 8 | . . . . . . . . . . . . . . . 8 Projectile 707 | . 33 27 7 . 5 75 163 201 64 23 51 . 23 35 . Critical Strikes 28 | . 1 1 . . . 4 7 3 1 1 2 . 3 3 2 Part Disruptions 7 | . . . . . . . 3 . 3 . . . 1 . . Damage Taken 10920 | . 527 382 85 . 79 1273 2944 1621 1006 437 917 . 456 793 400 Core 1230 | . 88 75 34 . . 98 281 139 33 37 128 . 57 101 159 Absorbed by Shields . | . . . . . . . . . . . . . . . . Redirected to Shielding 289 | . . . . . . . . 70 30 120 22 . . 47 . Ignored by Resistances 573 | . . . . . . 2 . 409 162 . . . . . . Regen/Repaired (Parts) 658 | . 33 . . . . 61 . 134 343 . . . . 87 . Core Remaining (%) 71 | 100 64 . . . 72 82 . 40 . . . . 70 . . Volleys Fired 375 | . 23 11 5 . 16 71 35 87 25 26 35 . 16 25 . Largest 2 | . 2 2 2 . 2 2 2 2 2 2 2 . 2 2 . Hottest 176 | . 80 90 90 . 90 90 176 176 173 66 66 . 162 162 . Shots Fired 638 | . 29 18 10 . 32 139 56 152 37 52 55 . 24 34 . Gun 428 | . 12 14 10 . 32 137 44 146 33 . . . . . . Cannon 187 | . 17 3 . . . . . . 2 52 55 . 24 34 . Launcher 23 | . . 1 . . . 2 12 6 2 . . . . . . Special . | . . . . . . . . . . . . . . . . Kinetic 199 | . . . . . . 60 20 . 2 52 55 . . 10 . Thermal 189 | . 17 3 . . . . 17 127 25 . . . . . . Explosive . | . . . . . . . . . . . . . . . . Electromagnetic 250 | . 12 15 10 . 32 79 19 25 10 . . . 24 24 . Robot Hit Streak 38 | . 9 9 5 . 11 37 38 9 5 12 8 . 7 11 . Robot Miss Streak 6 | . 3 3 6 . 3 4 3 4 2 3 3 . 4 1 . Penetration Max . | . . . . . . . . . . . . . . . . Secondary Targets 8 | . . . 2 . . 4 . 1 1 . . . . . . Max Gunslinging Chain 1 | . . . 1 . . 1 . 1 1 . . . . . . Shots Hit Robots 454 | . 21 23 5 . 22 119 36 99 16 39 34 . 13 27 . Core Hits 309 | . 15 19 3 . 16 71 46 51 32 15 16 . 5 20 . Critical Kills . | . . . . . . . . . . . . . . . . Critical Parts Destroyed 1 | . . 1 . . . . . . . . . . . . . Critical Strikes 26 | . . 2 . . . . . 12 2 2 3 . 1 4 . Burn 12 | . . . . . . . . 11 1 . . . . . . Blast 5 | . . . . . . . . . . 2 3 . . . . Corrupt 7 | . . . . . . . . 1 1 . . . 1 4 . Smash 2 | . . 2 . . . . . . . . . . . . . Melee Attacks 9 | . . 9 . . . . . . . . . . . . . Impact 9 | . . 9 . . . . . . . . . . . . . Slashing . | . . . . . . . . . . . . . . . . Piercing . | . . . . . . . . . . . . . . . . Sneak Attacks 3 | . . 3 . . . . . . . . . . . . . Combat Hostiles . | . . . . . . . . . . . . . . . . Follow-up Attacks . | . . . . . . . . . . . . . . . . Damage Inflicted 15134 | . 642 713 94 . 417 2544 1969 3617 1052 1413 1255 . 198 1220 . Guns 6756 | . 79 168 64 . 373 2157 816 2654 445 . . . . . . Cannons 4096 | . 263 53 . . . . . . . 1413 1255 . 198 914 . Explosions 3875 | . 300 220 20 . 44 387 1138 941 527 . . . . 298 . Melee 268 | . . 268 . . . . . . . . . . . . . Ramming 139 | . . 4 10 . . . 15 22 80 . . . . 8 . Kinetic 4435 | . . . . . . 1094 301 . . 1413 1255 . . 372 . Thermal 4483 | . 563 225 20 . 44 321 472 2262 278 . . . . 298 . Explosive 236 | . . . . . . . . 236 . . . . . . . Electromagnetic 5573 | . 79 216 64 . 373 1129 1181 1097 694 . . . 198 542 . Impact 268 | . . 268 . . . . . . . . . . . . . Slashing . | . . . . . . . . . . . . . . . . Piercing . | . . . . . . . . . . . . . . . . Highest Corruption 26 | . . . . . . 6 26 26 . . . . 1 5 12 Average Corruption 14 | . . . . . . 5 12 23 . . . . 1 4 10 Corruption Purged 5 | . . . . . . . . 5 . . . . . . . Corruption Blocked . | . . . . . . . . . . . . . . . . Effects 101 | . . . . . . 19 7 71 . . . . 2 . 2 Message Errors 20 | . . . . . . 3 1 14 . . . . 1 . 1 Matter Fused 26 | . . . . . . 2 2 21 . . . . . . 1 Heat Flow Errors 6 | . . . . . . 2 . 4 . . . . . . . Energy Discharges 10 | . . . . . . 1 1 8 . . . . . . . Parts Rejected 1 | . . . . . . . . 1 . . . . . . . Parts Fused 2 | . . . . . . 1 . . . . . . 1 . . Data Loss (minor) 8 | . . . . . . 2 1 5 . . . . . . . Data Loss (major) 7 | . . . . . . 3 1 3 . . . . . . . Misfires 5 | . . . . . . 1 1 3 . . . . . . . Alerts 3 | . . . . . . . . 3 . . . . . . . Weapon Failures 13 | . . . . . . 4 . 9 . . . . . . . Overload Shots . | . . . . . . . . . . . . . . . . Overflow Damage 360 | . 78 64 . . . . 5 52 20 22 63 . 11 45 . Projectiles 141 | . . . . . . . . . . 22 63 . 11 45 . Explosions 137 | . 78 . . . . . 5 52 2 . . . . . . Melee 82 | . . 64 . . . . . . 18 . . . . . . Knockbacks 23 | . . 2 . . . . . . 1 7 9 . . 4 . Impact 3 | . . 2 . . . . . . 1 . . . . . . Kinetic 18 | . . . . . . . . . . 6 8 . . 4 . Secondary 2 | . . . . . . . . . . 1 1 . . . . Self-Inflicted Damage 643 | . 127 46 23 . . 58 203 117 69 . . . . . . Shots 25 | . 2 1 1 . . 3 11 5 2 . . . . . . Rammed 9 | . . 1 1 . . 1 1 1 4 . . . . . . Targets Rammed 12 | . . 1 1 . . 1 1 1 4 . . . . 3 . Kicked 3 | . . . . . . . . . . . . . . 3 . Crushed . | . . . . . . . . . . . . . . . . Highest Temperature 564 | . 244 10 40 . 36 194 564 309 292 50 17 . 151 189 . Average Temperature 73 | . 82 6 35 . 15 40 168 83 80 20 5 . 69 53 . Received Heat Transfer 2787 | . 213 99 . . . 621 84 723 396 201 252 . . 198 . Effects 6 | . . . . . . . 6 . . . . . . . . Shutdowns 1 | . . . . . . . 1 . . . . . . . . Energy Bleed 1 | . . . . . . . 1 . . . . . . . . Interference 1 | . . . . . . . 1 . . . . . . . . Matter Decay 2 | . . . . . . . 2 . . . . . . . . Short Circuit 1 | . . . . . . . 1 . . . . . . . . Siege Activations . | . . . . . . . . . . . . . . . . Martial Activations . | . . . . . . . . . . . . . . . . Shielding Activations . | . . . . . . . . . . . . . . . . Robots Disrupted 3 | . . . . . . . . 1 2 . . . . . . Combat Hostiles 3 | . . . . . . . . 1 2 . . . . . . Robots Corrupted 8 | . . 3 . . . . 1 1 2 . . . 1 . . Combat Hostiles 5 | . . 1 . . . . 1 1 1 . . . 1 . . Parts Fried 27 | . . 5 . . 3 3 4 4 5 . . . . 3 . Impact Corruptions 5 | . . 4 . . . . . . 1 . . . . . . Robots Melted 3 | . . . . . . . . 3 . . . . . . . Combat Hostiles 3 | . . . . . . . . 3 . . . . . . . Parts Melted 20 | . 2 . . . . . 3 14 1 . . . . . . Heat Transferred 8141 | . 755 261 50 . . 450 525 5200 650 . . . . 250 . Parts Sabotaged . | . . . . . . . . . . . . . . . . Parts Stolen . | . . . . . . . . . . . . . . . . Parts Stripped . | . . . . . . . . . . . . . . . . Power Chain Reactions 23 | . 1 4 1 . 1 5 5 1 3 . . . . 2 . Alert | -11 -10 -9 -9 -9 -8 -8 -7 -7 -6 -6 -6 -6 -5 -5 -5 ------- Run | Yrd Mat Mat Min Exi Min Mat Fac Sto Fac Low Low Dat Pro Fac Was Maximum Alert Level 2 | . 1 . . . . 1 . 1 2 . . . . 1 . Low Security (%) 63 | . 95 100 100 . 100 48 100 41 21 . . . . . 100 Level 1 33 | . 4 . . . . 51 . 58 28 . . . . 100 . Level 2 3 | . . . . . . . . . 49 . . . . . . Level 3 . | . . . . . . . . . . . . . . . . Level 4 . | . . . . . . . . . . . . . . . . Level 5 . | . . . . . . . . . . . . . . . . High Security . | . . . . . . . . . . . . . . . . Max Security . | . . . . . . . . . . . . . . . . Peak Influence 594 | . 219 193 133 . 35 376 165 390 594 . . . . 351 112 Initial 300 | . . 50 37 . . . 165 68 150 . . . . 300 112 Average 156 | . 107 67 28 . 9 166 93 223 343 . . . . 297 54 Influence Increases 4679 | . 349 331 96 . 90 706 365 774 704 185 355 . 80 644 . Destroy 0b10 Robot/C 2260 | . 200 200 60 . 20 460 260 380 140 140 180 . 60 160 . Destroy 0b10 Robot/NC 285 | . 10 30 . . 45 60 20 70 25 5 5 . . 15 . Destroy Leader 526 | . 50 62 10 . 10 116 42 122 34 10 20 . 20 30 . Allied During Kill 16 | . . . . . . . . 8 8 . . . . . . Trap Triggered on 0b10 20 | . . . . . . . . 20 . . . . . . . Successful Hack 51 | . 5 9 . . . 14 . 16 6 . . . . 1 . Disable Machine 240 | . 45 15 15 . 15 15 30 60 30 . . . . 15 . Destroy Structure 201 | . 24 15 11 . . 26 13 83 11 . . . . 18 . Advance Influence 300 | . . . . . . . . . . . . . . 300 . Partial Spotted 15 | . . . . . . . . . 15 . . . . . . Lose Combat Pursuer 765 | . 15 . . . . 15 . 15 435 30 150 . . 105 . Influence Decreases 4679 | . 230 353 193 . 90 341 578 595 615 256 403 301 80 322 322 Entered New Map 1328 | . . 69 60 . . . 200 84 181 156 67 301 . . 210 Time Decay 2650 | . 200 283 133 . 90 301 310 441 214 90 246 . 60 262 20 Search Patrol Dispatched 150 | . . . . . . . . . 150 . . . . . . Lost Part 401 | . 30 1 . . . 40 60 30 20 10 90 . 20 60 40 Lost Ally 150 | . . . . . . . 8 40 50 . . . . . 52 Squads Dispatched 31 | . 2 1 . . . 7 1 8 7 . . . . 5 . Investigation 14 | . . . . . . 4 1 3 4 . . . . 2 . Extermination 4 | . . . . . . . . 2 1 . . . . 1 . Reinforcement 10 | . 2 1 . . . . . 3 2 . . . . 2 . Assault . | . . . . . . . . . . . . . . . . Garrison 3 | . . . . . . 3 . . . . . . . . . Intercept . | . . . . . . . . . . . . . . . . Searches Triggered 1 | . . . . . . . . . 1 . . . . . . Data Miner Redirects 1 | . . . . . . . . . . . . . . 1 . Construction Impeded 1 | . . . . . . . . . 1 . . . . . . Haulers Reinforced 3 | . . . . . . . . 2 1 . . . . . . Active Scanning Responses . | . . . . . . . . . . . . . . . . Cargo Convoy Interrupts 1 | . . . . . . . 1 . . . . . . . . Stealth | -11 -10 -9 -9 -9 -8 -8 -7 -7 -6 -6 -6 -6 -5 -5 -5 --------- Run | Yrd Mat Mat Min Exi Min Mat Fac Sto Fac Low Low Dat Pro Fac Was Distress Signals 14 | . . . . . . 4 1 5 3 . . . . 1 . Communications Jammed . | . . . . . . . . . . . . . . . . Distress Signals . | . . . . . . . . . . . . . . . . Times Spotted 219 | . 16 17 2 . 1 27 24 27 46 9 19 . 8 18 5 Peak Tracking Total 11 | . 5 6 2 . 1 5 11 4 11 5 10 . 4 5 4 Tactical Retreats 24 | . 1 . . . . 1 . 2 9 2 5 . . 4 . Traps | -11 -10 -9 -9 -9 -8 -8 -7 -7 -6 -6 -6 -6 -5 -5 -5 ------- Run | Yrd Mat Mat Min Exi Min Mat Fac Sto Fac Low Low Dat Pro Fac Was Traps Triggered 8 | . . . . . . . . 4 2 . . . . 2 . Indirectly . | . . . . . . . . . . . . . . . . Trap Hack Attempts . | . . . . . . . . . . . . . . . . Triggered . | . . . . . . . . . . . . . . . . Disarmed . | . . . . . . . . . . . . . . . . Reprogrammed 4 | . . . . . . . . 4 . . . . . . . Reused 4 | . . . . . . . . 2 . . . . 2 . . Traps Extracted . | . . . . . . . . . . . . . . . . Installed 3 | . . . . . . . . . . . . . 2 1 . Triggered 4 | . . . . . . . . 2 . . . . 2 . . Most Traps Carried 3 | . . . . . . . . . . . 3 3 3 1 . Machines | -11 -10 -9 -9 -9 -8 -8 -7 -7 -6 -6 -6 -6 -5 -5 -5 ---------- Run | Yrd Mat Mat Min Exi Min Mat Fac Sto Fac Low Low Dat Pro Fac Was Machines Disabled 16 | . 3 1 1 . 1 1 2 4 2 . . . . 1 . Max in Single Turn 2 | . 1 1 1 . 1 1 2 2 2 . . . . 1 . Machines Repaired . | . . . . . . . . . . . . . . . . Machines Dismantled . | . . . . . . . . . . . . . . . . Machines Sabotaged . | . . . . . . . . . . . . . . . . Overloaded Fab Kills . | . . . . . . . . . . . . . . . . Hacking | -11 -10 -9 -9 -9 -8 -8 -7 -7 -6 -6 -6 -6 -5 -5 -5 --------- Run | Yrd Mat Mat Min Exi Min Mat Fac Sto Fac Low Low Dat Pro Fac Was Machines Accessed 40 | . 3 4 . 2 . 7 3 6 7 . 1 4 . 3 . Terminals 20 | . 2 2 . . . 5 2 3 5 . . . . 1 . Fabricators . | . . . . . . . . . . . . . . . . Repair Stations 6 | . 1 . . . . 1 . 1 2 . . . . 1 . Recycling Units 2 | . . 1 . . . . . 1 . . . . . . . Scanalyzers 1 | . . 1 . . . . . . . . . . . . . Garrison Access 4 | . . . . . . 1 1 1 . . . . . 1 . Total Hacks 125 | . 9 14 . 2 . 21 9 16 19 . 1 28 . 6 . Successful 74 | . 4 7 . 2 . 10 5 6 7 . 1 28 . 4 . Failed 51 | . 5 7 . . . 11 4 10 12 . . . . 2 . Catastrophic 8 | . . . . . . 2 1 3 1 . . . . 1 . Database Lockouts . | . . . . . . . . . . . . . . . . Manual 38 | . 2 . . 1 . 6 3 5 15 . . . . 6 . Terminals 66 | . 7 7 . . . 16 7 12 16 . . . . 1 . Fabricators . | . . . . . . . . . . . . . . . . Repair Stations 9 | . 2 . . . . 2 . 1 3 . . . . 1 . Recycling Units 2 | . . 1 . . . . . 1 . . . . . . . Scanalyzers 6 | . . 6 . . . . . . . . . . . . . Garrison Access 11 | . . . . . . 3 2 2 . . . . . 4 . Terminal Hacks 52 | . 2 2 . 2 . 6 4 4 3 . 1 28 . . . Record 12 | . . . . 1 . . . . . . . 11 . . . Part Schematic 10 | . . . . . . . . . . . . 10 . . . Robot Schematic 4 | . . . . . . . . . . . . 4 . . . Robot Analysis 1 | . 1 . . . . . . . . . . . . . . Prototype ID Bank 6 | . . 1 . . . 1 . . 1 . . 3 . . . Open Door 1 | . . . . . . . . . . . 1 . . . . Branch Access Points 2 | . . . . . . . 1 . 1 . . . . . . Terminal Index 2 | . . 1 . . . . 1 . . . . . . . . Alert Level 2 | . . . . . . 1 . 1 . . . . . . . Locate Traps 5 | . . . . . . 2 1 1 1 . . . . . . Reprogram Traps 1 | . . . . . . . . 1 . . . . . . . Patrol Status 1 | . . . . . . 1 . . . . . . . . . Registered Components 1 | . . . . . . . 1 . . . . . . . . Zone Layout 3 | . 1 . . . . 1 . 1 . . . . . . . Proto ID Catalog 1 | . . . . 1 . . . . . . . . . . . Fabricator Hacks . | . . . . . . . . . . . . . . . . Repair Station Hacks 4 | . 2 . . . . 2 . . . . . . . . . Scan Component 2 | . 1 . . . . 1 . . . . . . . . . Repair 2 | . 1 . . . . 1 . . . . . . . . . Recycling Unit Hacks 2 | . . 1 . . . . . 1 . . . . . . . Report Inventory 2 | . . 1 . . . . . 1 . . . . . . . Scanalyzer 4 | . . 4 . . . . . . . . . . . . . Insert Component 2 | . . 2 . . . . . . . . . . . . . Analyze 2 | . . 2 . . . . . . . . . . . . . Garrison Access Hacks . | . . . . . . . . . . . . . . . . Unauthorized Hacks 12 | . . . . . . 2 1 1 4 . . . . 4 . Terminals 5 | . . . . . . 2 1 . 2 . . . . . . Assimilate 3 | . . . . . . 1 1 . 1 . . . . . . Botnet 2 | . . . . . . 1 . . 1 . . . . . . Fabricators . | . . . . . . . . . . . . . . . . Repair Stations 4 | . . . . . . . . 1 2 . . . . 1 . Patch 4 | . . . . . . . . 1 2 . . . . 1 . Recycling Units . | . . . . . . . . . . . . . . . . Scanalyzers . | . . . . . . . . . . . . . . . . Garrison Access 3 | . . . . . . . . . . . . . . 3 . Broadcast 1 | . . . . . . . . . . . . . . 1 . Decoy 1 | . . . . . . . . . . . . . . 1 . Watchers 1 | . . . . . . . . . . . . . . 1 . Data Cores Recovered . | . . . . . . . . . . . . . . . . Used . | . . . . . . . . . . . . . . . . Hacking Detections 28 | . 3 3 . . . 6 3 5 6 . . . . 2 . Full Trace Events 10 | . 1 . . . . 4 1 2 2 . . . . . . Feedback Events . | . . . . . . . . . . . . . . . . Feedback Blocked . | . . . . . . . . . . . . . . . . Robot Schematics Acquired 4 | . . . . . . . . . . . . 4 . . . Robots Built . | . . . . . . . . . . . . . . . . Authchips . | . . . . . . . . . . . . . . . . Time . | . . . . . . . . . . . . . . . . Total Robot Build Rating . | . . . . . . . . . . . . . . . . Part Schematics Acquired 12 | . . 2 . . . . . . . . . 10 . . . Parts Built . | . . . . . . . . . . . . . . . . Authchips . | . . . . . . . . . . . . . . . . Time . | . . . . . . . . . . . . . . . . Total Part Build Rating . | . . . . . . . . . . . . . . . . Parts Repaired 2 | . 1 . . . . 1 . . . . . . . . . Time 58 | . 26 . . . . 32 . . . . . . . . . Parts Recycled . | . . . . . . . . . . . . . . . . Recycled Matter . | . . . . . . . . . . . . . . . . Retrieved Matter . | . . . . . . . . . . . . . . . . Retrieved Components . | . . . . . . . . . . . . . . . . Parts Scanalyzed 2 | . . 2 . . . . . . . . . . . . . Part Schematics Acquired 2 | . . 2 . . . . . . . . . . . . . Parts Damaged . | . . . . . . . . . . . . . . . . Bothacking | -11 -10 -9 -9 -9 -8 -8 -7 -7 -6 -6 -6 -6 -5 -5 -5 ------------ Run | Yrd Mat Mat Min Exi Min Mat Fac Sto Fac Low Low Dat Pro Fac Was Used RIF Installer . | . . . . . . . . . . . . . . . . Robots Hacked . | . . . . . . . . . . . . . . . . Non-combat . | . . . . . . . . . . . . . . . . Combat . | . . . . . . . . . . . . . . . . Robot Hacks Applied . | . . . . . . . . . . . . . . . . Relay Couplers Released . | . . . . . . . . . . . . . . . . Fabnet Peak Effective % . | . . . . . . . . . . . . . . . . Robots Rewired 1 | . . . . . . . . 1 . . . . . . . Allies Hacked . | . . . . . . . . . . . . . . . . Hacks Repelled . | . . . . . . . . . . . . . . . . Allies | -11 -10 -9 -9 -9 -8 -8 -7 -7 -6 -6 -6 -6 -5 -5 -5 -------- Run | Yrd Mat Mat Min Exi Min Mat Fac Sto Fac Low Low Dat Pro Fac Was Total Allies 16 | . . . 3 . . . 1 11 1 . . . . . . Largest Group 10 | . . . 3 2 . . 1 10 3 . . . . . . Highest-Rated Group 173 | . . . 72 41 . . 10 173 42 . . . . . . Highest-Rated Ally 32 | . . . 31 31 . . 10 32 16 . . . . . . Total Orders . | . . . . . . . . . . . . . . . . Ally Attacks 96 | . . . . . . . . 3 10 . . . . . 83 Total Damage 1340 | . . . . . . . . 32 125 . . . . . 1183 Kills 3 | . . . . . . . . . 2 . . . . . 1 Allies Corrupted . | . . . . . . . . . . . . . . . . Allies Melted . | . . . . . . . . . . . . . . . . Intel | -11 -10 -9 -9 -9 -8 -8 -7 -7 -6 -6 -6 -6 -5 -5 -5 ------- Run | Yrd Mat Mat Min Exi Min Mat Fac Sto Fac Low Low Dat Pro Fac Was Active Infowar (turns) 3875 | . . 278 640 413 . . 44 127 360 192 526 156 476 574 89 Optics 2373 | . . . . . . . . . 360 192 526 156 476 574 89 Sensors 46 | . . . 2 . . . 44 . . . . . . . . Terrain 439 | . . . . . . . . . . . . . . 439 . Traps 127 | . . . . . . . . 127 . . . . . . . Machine Analysis 1331 | . . 278 640 413 . . . . . . . . . . . Robot Analysis Total 1 | . 1 . . . . . . . . . . . . . . Derelict Logs Recovered 6 | . . . 2 . . . . . . 1 2 . 1 . . Drone Launches 21 | . . . . . . . . . . . . . . . 21 Drone Recoveries 5 | . . . . . . . . . . . . . . . 5 Exploration | -11 -10 -9 -9 -9 -8 -8 -7 -7 -6 -6 -6 -6 -5 -5 -5 ------------- Run | Yrd Mat Mat Min Exi Min Mat Fac Sto Fac Low Low Dat Pro Fac Was Turns Passed 9641 | . 491 709 640 1701 291 1335 692 1319 450 192 526 156 476 574 89 Spaces Moved 5527 | 1 274 424 363 566 98 477 330 680 806 272 551 131 281 249 24 Core . | . . . . . . . . . . . . . . . . Treads 1765 | . 156 258 363 242 . 146 330 270 . . . . . . . Legs 1013 | 1 45 166 . . . . . . . . 116 131 281 249 24 Wheels 853 | . 23 . . 324 98 331 . 77 . . . . . . . Hover 1896 | . 50 . . . . . . 333 806 272 435 . . . . Flight . | . . . . . . . . . . . . . . . . Fastest Speed 15 | 120 56 120 170 170 230 155 160 22 15 34 30 120 120 190 120 Average Speed 141 | 120 131 147 170 298 238 211 166 126 36 34 70 120 146 191 155 Slowest Speed 570 | 120 180 190 170 395 395 570 167 410 98 90 190 120 190 260 190 Overloaded Moves 215 | . . . . . . . . 1 126 . 88 . . . . Propulsion Burnouts . | . . . . . . . . . . . . . . . . Robots Hopped . | . . . . . . . . . . . . . . . . Potential Cave-ins . | . . . . . . . . . . . . . . . . Cave-ins Triggered . | . . . . . . . . . . . . . . . . Exploration Rate (%) 44 | 2 51 44 59 84 20 33 7 77 28 46 71 80 57 8 41 Regions Visited 15 Branch Regions 8 Pre-discovered Areas 3 | . . . 1 1 . . . . . . . 1 . . . Known Exits Taken 4 | . . . . . . . 1 . 1 1 . . 1 . . Unknown Exits Taken 10 | 1 1 1 1 1 1 1 . 1 . . 1 1 . . . Scrap Searched 11 | . . . 2 . 1 . . . . 2 5 . 1 . . Spaces Dug 8 | . . . . . . . . 3 5 . . . . . . Terrain Destroyed 229 | . 31 13 14 . . 25 18 80 10 10 20 . . 8 . Melee . | . . . . . . . . . . . . . . . . Projectile 80 | . . . . . . . 3 35 10 10 20 . . 2 . AOE 149 | . 31 13 14 . . 25 15 45 . . . . . 6 . Terrain Rammed . | . . . . . . . . . . . . . . . . Walls Destroyed . | . . . . . . . . . . . . . . . . Machines Disabled . | . . . . . . . . . . . . . . . . Actions | -11 -10 -9 -9 -9 -8 -8 -7 -7 -6 -6 -6 -6 -5 -5 -5 --------- Run | Yrd Mat Mat Min Exi Min Mat Fac Sto Fac Low Low Dat Pro Fac Was Total 6663 | . 374 471 375 580 124 659 418 958 924 313 633 130 320 308 76 Wait 308 | . 48 5 3 . 1 58 . 71 28 1 18 . 15 16 44 Move 5513 | . 273 423 362 565 97 476 329 679 805 271 550 130 280 249 24 Hop . | . . . . . . . . . . . . . . . . Pick Up 64 | . 5 4 1 3 6 17 6 5 7 . 5 . 1 4 . Fast Attach 76 | . 6 4 . 1 2 6 13 17 8 4 7 . 2 4 2 Attach 34 | . 3 . . . . 10 2 2 7 . 8 . . 2 . Detach 34 | . 5 . . 3 1 7 3 1 4 . 5 . . . 5 Swap 106 | . 6 8 2 4 . 7 12 38 15 7 2 . 1 3 1 Drop 78 | . 5 6 1 4 1 6 17 14 14 4 3 . 2 1 . Fire 375 | . 23 11 5 . 16 71 35 87 25 26 35 . 16 25 . Melee 9 | . . 9 . . . . . . . . . . . . . Ram 4 | . . . . . . . . . 4 . . . . . . Kick 3 | . . . . . . . . . . . . . . 3 . Crush 5 | . . 1 1 . . 1 1 1 . . . . . . . Escape Stasis 39 | . . . . . . . . 39 . . . . . . . Rewire 12 | . . . . . . . . 4 7 . . . 1 . . Trap 3 | . . . . . . . . . . . . . 2 1 . Miscellaneous . | . . . . . . . . . . . . . . . . Route ------- -11/Scrapyard -10/Materials -9/Materials (discovered 2 exits: *Mat / [*Min]) -9/Mines (discovered 3 exits: *Mat x2 / *Exi) -9/Exiles -8/Mines -8/Materials -7/Factory (discovered 3 exits: *Sto / Low x2) -7/Storage -6/Factory (discovered 2 exits: *Low x2) -6/Lower Caves -6/Lower Caves (discovered 2 exits: *Fac / *Dat) -6/Data Miner -5/Proximity Caves -5/Factory -5/Waste History --------- Turn | Location | Event 1 | -11/Scrapyard | Discovered new exit (range 0) 1 | -11/Scrapyard | Entered Materials 174 | -10/Materials | Lost 3 parts (1n2w) 307 | -10/Materials | Build established: Mutant 363 | -10/Materials | Repaired Lgt. Ion Engine 419 | -10/Materials | Discovered new exit (range 13) 492 | -10/Materials | Entered another Materials area 492 | -9/Materials | Evolved 2 slots: Utility x2 999 | -9/Materials | Discovered new exit (range 13) 1184 | -9/Materials | Discovered new exit (range 7) 1201 | -9/Materials | Entered Mines 1241 | -9/Mines | Found a damaged Exp. Sensor Array with a note attached 1244 | -9/Mines | Found Prototype Device 1244 | -9/Mines | Identified Exp. Sensor Array 1379 | -9/Mines | Discovered new exit (range 6) 1383 | -9/Mines | Received a Mining Laser from a helpful Derelict 1630 | -9/Mines | Discovered new exit (range 3) 1659 | -9/Mines | Found a hidden stash of uninstalled traps 1802 | -9/Mines | Learned Materials stockpile data 1832 | -9/Mines | Deemed a non-threat by the Exiles lab entrance 1832 | -9/Mines | Discovered new exit (range 5) 1841 | -9/Mines | Entered Exiles 1841 | -9/Exiles | Accompanied by 2 allies 1871 | -9/Exiles | Led the pair of lost Derelicts to a safe place 1887 | -9/Exiles | Met 8R-AWN 1916 | -9/Exiles | Met EX-HEX 1964 | -9/Exiles | Met EX-BIN 1988 | -9/Exiles | Aligned with FarCom system 1989 | -9/Exiles | Given EX-Vault access code 2030 | -9/Exiles | Opened EX-Vault 2105 | -9/Exiles | Warned to stay clear of 0b10 Research branches 2153 | -9/Exiles | Met EX-DEC 2556 | -9/Exiles | Build established: Hauler-Mutant 2610 | -9/Exiles | Found Skeleton Box 2623 | -9/Exiles | Found Cloak of Protection 2632 | -9/Exiles | Found Army-in-a-Box 2910 | -9/Exiles | Learned location of Zion (-7) 3069 | -9/Exiles | Visited The Gauntlet 3511 | -9/Exiles | Discovered new exit (range 10) 3542 | -9/Exiles | Left Exiles lab with Army-in-a-Box 3542 | -9/Exiles | Entered Mines 3814 | -8/Mines | Discovered new exit (range 9) 3833 | -8/Mines | Entered Materials 3833 | -8/Materials | Evolved 2 slots: Propulsion x2 4293 | -8/Materials | Garrison activated, responded to threat 4379 | -8/Materials | Repaired Imp. Ion Engine 4545 | -8/Materials | Lost 3 parts (2n1u) 5119 | -8/Materials | Discovered new exit (range 15) 5168 | -8/Materials | Entered Factory 5168 | -7/Factory | Evolved 2 slots: Utility x2 5475 | -7/Factory | Build established: Mutant 5483 | -7/Factory | Identified exit to Storage 5483 | -7/Factory | Identified exit to Lower Caves 5679 | -7/Factory | Cargo convoy interrupted 5716 | -7/Factory | Found Prototype Launcher 5716 | -7/Factory | Identified Tesla Bomb Launcher 5740 | -7/Factory | Lost 4 parts (3n1u) 5744 | -7/Factory | System corruption reached 10% 5860 | -7/Factory | Entered Storage 5881 | -7/Storage | Met 01-MTF 5943 | -7/Storage | Found Prototype Device 5943 | -7/Storage | Identified 01-MTF's Autohacker 5950 | -7/Storage | Found Prototype Energy Gun 5968 | -7/Storage | Destroyed 01-MTF 5987 | -7/Storage | Identified 01-MTF's Shockpuncher 6162 | -7/Storage | Remotely autohacked Sealed Heavy Doors 6525 | -7/Storage | Remotely autohacked Sealed Heavy Doors 6672 | -7/Storage | Core integrity fell below 50% 6833 | -7/Storage | Remotely autohacked Sealed Heavy Doors 6895 | -7/Storage | Discovered new exit (range 16) 6986 | -7/Storage | Assisted by bots powering up and referring to "LRC-V3" 7179 | -7/Storage | Entered Factory 7179 | -6/Factory | Accompanied by 2 allies 7179 | -6/Factory | Evolved 2 slots: Propulsion x1, Utility x1 7529 | -6/Factory | Search patrols dispatched 7548 | -6/Factory | Spotted B-75 Beast 7549 | -6/Factory | Identified exit to Lower Caves 7629 | -6/Factory | Entered Lower Caves 7645 | -6/Lower Caves | Identified exit to Lower Caves 7821 | -6/Lower Caves | Entered another Lower Caves area 7833 | -6/Lower Caves | Discovered new exit (range 17) 8049 | -6/Lower Caves | Lost 7 parts (1p5n1w) 8097 | -6/Lower Caves | Encountered a Warlord checkpoint 8129 | -6/Lower Caves | Learned 8 Factory zone layouts 8146 | -6/Lower Caves | Found DCF Scrap (14 items) 8154 | -6/Lower Caves | Discovered new exit (range 22) 8347 | -6/Lower Caves | Entered Data Miner 8347 | -6/Data Miner | Discovered new exit (range 6) 8363 | -6/Data Miner | Met Data Miner 8400 | -6/Data Miner | Learned location of Section 7 (-2) 8400 | -6/Data Miner | Acquired the access code to Warlord's prototype stash 8416 | -6/Data Miner | Received God Mode back door access code from Data Miner 8463 | -6/Data Miner | Build established: Derelict-Mutant 8503 | -6/Data Miner | Entered Proximity Caves 8549 | -5/Proximity Caves | Identified exit to Factory 8715 | -5/Proximity Caves | Spotter reported a threat 8846 | -5/Proximity Caves | Spotter reported a threat 8979 | -5/Proximity Caves | Entered Factory 8979 | -5/Factory | Evolved 2 slots: Utility x2 8980 | -5/Factory | Identified exit to Extension 9144 | -5/Factory | Incoming investigation squad redirected 9529 | -5/Factory | Lost 4 parts (2n1u1w) 9553 | -5/Factory | Sucked down chute 9553 | -5/Factory | Entered Waste 9568 | -5/Waste | EMP discharged 9568 | -5/Waste | System corruption reached 10% 9576 | -5/Waste | Spotted C-40 Crusher 9580 | -5/Waste | Spotted C-40 Crusher 9580 | -5/Waste | Spotted C-40 Crusher 9592 | -5/Waste | Spotted C-40 Crusher 9592 | -5/Waste | Crushed by Compactor (2 parts destroyed, 1 dropped) 9595 | -5/Waste | Crushed by Compactor (1 part destroyed, 2 dropped) 9596 | -5/Waste | Crushed by Compactor (1 part destroyed, 1 dropped) 9603 | -5/Waste | Spotted C-40 Crusher 9622 | -5/Waste | Allies destroyed C-40 Crusher 9627 | -5/Waste | Lost 4 parts (1n3u) 9642 | -5/Waste | Self-destructed Last Messages --------------- 09635_ Wheel disintegrated. 09635_ Army Drone suffers critical hit (Destroy). 09636_ Army Drone Spread Laser crushed. 09636_ Army Drone Wheel crushed. 09636_ Wheel disintegrated. 09636_ Army Drone Wheel crushed. 09636_ Wheel disintegrated. 09636_ Army Drone suffers critical hit (Destroy). 09636_ Army Drone destroyed. 09639_ 17 Matter crushed. 09639_ 13 Matter crushed. 09640_ Army Drone released from Army-in-a-Box. 09640_ C-40 Crusher suffers critical hit (Destroy). 09640_ Army Drone retrieved by Army-in-a-Box (repair cost: 52). 09641_ Army Drone Hpw. Shotgun crushed. 09641_ Army Drone Med. Armor Plating crushed. 09641_ Med. Armor Plating disintegrated. 09641_ Army Drone suffers critical hit (Destroy). 09641_ Army Drone destroyed. 09642_ Acquired 14 matter. Map ----- +----------------------------------------------------+ | ?????????????????????????????????????????????????? | | ?????????????????????????????????????????????????? | | ?????????????????????????????????????????????????? | | ?????????????????????????????????????????????????? | | ?????????????????????????????????????????????????? | | ?????????????????????????????????????????????????? | | ?????????????????????????????????????????????????? | | ?????????????????????????????????????????????????? | | ?????????????????????????????????????????????????? | | ?????????????????????????????????????????????????? | | ??????????????????######?????????????????????????? | | ??????????????????# #?????????????????????????? | | ????############??# #?????????????????????????? | | ????# #??# #?????????????????????????? | | ????# #??# #?????????????????????????? | | ????# #### #?????????????????????????? | | ????# #?????????????????????????? | | ????# #?????????????????????????? | | ????# #?????????????????????????? | | ????# #???????????#?????????????? | | ????# #### #?????????? #?????????????? | | ????# #??# #????????? #?????????????? | | ????# #??# #???????? #?????????????? | | ????############??# #??????? #?????????????? | | ????????????????### n######## ########??????? | | ????????????????# %%n@[%CC ??? | | ????????????????# CC!CCCC ??? | | ????????????????# CC CC CC ??? | | ????????????????# %% CC ???? | | ????????????????### ######## ######## ???? | | ??????????????????# #??????? #?????????????? | | ??????????????????# #???????? #?????????????? | | ??????????????????# #???????? #?????????????? | | ??????????????????# #????????? #?????????????? | | ?????????????????? #?????????? #?????????????? | | ????????????????? #?????????? #?????????????? | | ????????????????# #???????????#?????????????? | | ????????????????# #?????????????????????????? | | ????????????????### #?????????????????????????? | | ??????????????????# #?????????????????????????? | | ??????????????????# #?????????????????????????? | | ??????????????????# #?????????????????????????? | | ??????????????????# #?????????????????????????? | | ??????????????????######?????????????????????????? | | ?????????????????????????????????????????????????? | | ?????????????????????????????????????????????????? | | ?????????????????????????????????????????????????? | | ?????????????????????????????????????????????????? | | ?????????????????????????????????????????????????? | | ?????????????????????????????????????????????????? | +----------------------------------------------------+ Best States ------------- Heat Dissipation 88 Energy Generation 31 Energy Capacity 340 Matter Stores 300 Matter Capacity 300 Sight Range 22 Robot Scan Range 20 Terrain Scan Range 20 Terrain Scan Density 210 Power Amplification 30 Additional Mass Support 9 Armor Coverage 600 Resistance: TH 30 Resistance: EM 15 Propulsion Shielding 90 Utility Shielding 66 Weapon Shielding 66 Evasion (%) 62 Targeting Accuracy 8 Target Analysis 6 Core Analysis 6 Recoil Reduction 4 Offensive Hacking 22 Item Schematics ----------------- Datajack | -9/Materials | Scanalyzed Structural Scanner | -9/Materials | Scanalyzed Combat Drone Bay | -6/Data Miner | Free Lgt. Regenerative Plating | -6/Data Miner | Free Enh. Flexi-carbon Leg | -6/Data Miner | Free Imp. Energy Well | -6/Data Miner | Free Imp. KE Penetrator | -6/Data Miner | Free Centrium Wheel | -6/Data Miner | Free Adv. Power Amplifier | -6/Data Miner | Free Adv. Reaction Control System | -6/Data Miner | Free HERF Cannon | -6/Data Miner | Free Fusion Bomb Launcher | -6/Data Miner | Free Robot Schematics ------------------ G-50 Soldier | -6/Data Miner | Free H-66 Slayer | -6/Data Miner | Free E-15 Imp | -6/Data Miner | Free P-60 Hacker | -6/Data Miner | Free Fabricated ------------ Nothing Repaired ---------- Lgt. Ion Engine | 17% | -10/Materials Imp. Ion Engine | 12% | -8/Materials Alien Tech Used ----------------- None Achievements -------------- None Challenges ------------ None Game ------ Seed TachyonScrapCorpse Manual? 0 Play Time 00:57:33 Cumulative 1047.8 hours Start 2025.05.18 @ 13:35:31 End 2025.05.18 @ 14:40:17 Sessions 1 Manual Loads 0 Difficulty Rogue Special Mode None Game No. 1300 Rogue 1017 Adventurer 124 Explorer 159 Win Type - Total 46 Types 32/0/8/4/1/0/0/1/0/0 Lore% 91 Gallery% 86 Achievement% 80 Wizard Run 0 Options --------- Layout 0 ASCII 0 Keyboard 1 Movement Numpad Keybinds 0 Fullscreen 2 Font 18/X11 Map View 76x50 Zoom Use 0% Tactical HUD 1 Map Filters NONE Filters NONE Steam 1 RUN: 4db8e163-78bf-4090-b930-f435a0e98f6f